bitfinex/quotes_ETHUSD_20260120
["timestamp","ask_amount","ask_price","bid_price","bid_amount"]
[1768890635583,11.395973,3140.2,3139.7,0.502]
[1768890635949,11.395973,3140.2,3139.2,10.56412189]
[1768890636145,11.395973,3140.2,3139.3,0.502]
[1768890636391,11.395973,3140.2,3139.3,10.56412189]
[1768890636600,10.36070382,3140.4,3139.5,10.56412189]
[1768890638096,10.36070382,3140.4,3138.4,0.0008012]
[1768890638097,10.36070382,3140.4,3139.6,0.502]
[1768890639703,10.36070382,3140.4,3139.1,10.56412189]
[1768890639920,10.36070382,3140.4,3139.2,0.502]
[1768890640714,10.36070382,3140.4,3139.2,11.06612189]
[1768890640916,10.35990262,3140.2,3139.3,0.502]
[1768890641275,10.35990262,3140.2,3139.0,10.56412189]
[1768890641501,10.35990262,3140.2,3139.4,0.502]
[1768890641995,1.03607038,3140.3,3139.4,11.06612189]
[1768890642204,0.0008012,3140.4,3139.4,11.06612189]
[1768890642403,0.0008012,3140.4,3139.6,10.98835573]
[1768890642881,0.0018012,3140.7,3139.6,10.98835573]
[1768890643705,0.0008016,3141.1,3139.5,1.10661219]
[1768890643706,0.0008016,3141.1,3139.7,10.98835573]
[1768890643980,0.0008016,3141.1,3139.9,10.98835573]
[1768890644185,0.0008016,3141.1,3140.1,10.98835573]
[1768890644381,0.0008016,3141.1,3140.3,10.98835573]
[1768890645598,0.0008016,3141.1,3140.5,10.98835573]
[1768890646090,11.14364076,3141.1,3140.2,12.1373913]
[1768890646297,11.14364076,3141.1,3140.3,0.502]
[1768890646718,11.14364076,3141.1,3140.4,0.502]
[1768890646920,12.25800484,3141.1,3140.4,0.502]
[1768890647123,12.25800484,3141.1,3139.9,10.98835573]
[1768890647620,12.25800484,3141.1,3140.0,0.502]
[1768890647781,12.25800484,3141.1,3140.1,0.502]
[1768890647984,12.25800484,3141.1,3140.2,0.502]
[1768890648180,11.14283916,3140.9,3139.7,10.98835573]
[1768890648541,11.14283916,3140.9,3139.8,0.502]
[1768890649379,11.14283916,3140.9,3139.9,0.502]
[1768890649788,11.14283916,3140.9,3140.0,0.502]
[1768890650090,1.23686396,3140.8,3140.1,0.502]
[1768890650286,11.14283916,3141.0,3140.1,0.502]
[1768890650486,11.14283916,3141.0,3140.2,0.502]
[1768890650705,3.18370065,3141.0,3139.6,14.17343634]
[1768890650923,11.14283916,3140.9,3139.7,0.502]
[1768890651245,11.14283916,3140.7,3139.7,0.502]
[1768890651423,11.14283916,3140.7,3139.8,0.502]
[1768890652399,11.14283916,3140.7,3139.9,0.502]
[1768890654896,11.14283916,3140.7,3139.7,10.98835573]
[1768890655098,11.14283916,3140.7,3139.8,0.502]
[1768890655313,12.66334726,3140.6,3139.8,11.97317759]
[1768890656085,0.001,3140.4,3139.8,11.47117759]
[1768890656274,0.001,3140.4,3139.9,0.502]
[1768890656692,0.001,3140.4,3139.2,11.47117759]
[1768890656693,11.08840591,3140.4,3139.2,11.47117759]
[1768890656889,12.1962465,3140.3,3139.5,11.47117759]
[1768890657602,12.1962465,3140.3,3139.6,0.502]
[1768890657802,12.1962465,3140.3,3139.2,11.47117759]
[1768890657971,12.1962465,3140.3,3139.6,0.502]
[1768890658169,12.1962465,3140.3,3139.2,11.47117759]
[1768890658170,12.1962465,3140.3,3139.7,0.502]
[1768890658491,1.53815764,3140.2,3139.7,0.3984421]
[1768890658803,11.08840591,3140.4,3139.7,0.3984421]
[1768890659800,11.08840591,3140.4,3139.5,11.47117759]
[1768890659988,11.08840591,3140.4,3139.8,0.502]
[1768890660188,11.08840591,3140.4,3139.5,11.47117759]
[1768890660388,11.08740591,3140.3,3139.1,11.47317759]
[1768890660588,12.1962465,3140.3,3139.2,0.502]
[1768890661403,12.1962465,3140.3,3139.1,0.002]
[1768890661576,11.08740591,3140.1,3139.1,0.002]
[1768890661763,11.08740591,3139.9,3138.7,0.0008016]
[1768890661970,11.08740591,3139.7,3138.7,0.0008016]
[1768890662901,11.08740591,3139.7,3138.5,0.502]
[1768890663064,11.08740591,3139.5,3138.5,0.502]
[1768890663268,11.08740591,3139.5,3138.1,11.47197879]
[1768890663488,11.08740591,3139.5,3138.2,0.502]
[1768890663697,11.08740591,3139.3,3138.1,11.47197879]
[1768890663865,11.08740591,3139.1,3138.3,0.502]
[1768890664723,11.08740591,3139.1,3138.1,0.0008012]
[1768890665006,11.08740591,3139.1,3138.3,0.502]
[1768890665203,0.0147163,3138.3,3138.1,0.0008012]
[1768890665396,0.0147163,3138.3,3138.2,0.502]
[1768890665761,0.0147163,3138.3,3138.2,1.69939788]
[1768890665987,0.0147163,3138.3,3138.2,0.502]
[1768890667089,11.08740591,3139.5,3138.3,11.47117759]
[1768890667702,11.08740591,3139.5,3138.6,11.47117759]
[1768890668216,11.08820711,3140.1,3138.7,11.97317759]
[1768890668370,0.0008012,3140.1,3138.9,11.47117759]
[1768890669863,0.0008012,3140.1,3139.1,11.47117759]
[1768890670104,0.0008012,3140.1,3139.3,11.47117759]
[1768890670320,0.0018016,3140.4,3139.3,11.47117759]
[1768890670523,0.0018016,3140.4,3139.5,11.47117759]
[1768890671530,11.08920751,3140.4,3139.6,0.502]
[1768890671712,11.08920751,3140.4,3139.1,11.47117759]
[1768890671908,11.08920751,3140.4,3139.2,11.47117759]
[1768890672289,11.08920751,3140.4,3138.9,11.47117759]
[1768890672491,11.08920751,3140.4,3139.0,0.502]
[1768890672492,11.08740591,3140.2,3139.0,0.502]
[1768890673308,11.08740591,3140.2,3139.1,0.502]
[1768890674107,11.08740591,3140.1,3139.1,0.502]
[1768890674728,12.19632666,3140.3,3139.2,11.47117759]
[1768890674898,12.30721874,3140.2,3139.2,11.47117759]
[1768890675099,0.0018016,3140.4,3139.2,11.47117759]
[1768890675911,0.0018016,3140.4,3139.3,3.1854235]
[1768890676107,0.0018016,3140.4,3139.4,11.47117759]
[1768890676626,11.08740591,3140.3,3139.5,0.502]
[1768890676925,1.10892075,3140.2,3139.5,0.502]
[1768890678724,11.08740591,3140.3,3139.5,0.502]
[1768890678926,11.08740591,3140.3,3139.6,0.502]
[1768890679124,11.08740591,3140.3,3139.0,14.65684676]
[1768890679325,11.08740591,3140.3,3139.1,0.502]
[1768890679501,12.51475905,3140.2,3139.2,0.502]
[1768890679702,12.51475905,3140.2,3139.2,3.6875215]
[1768890679897,0.001,3139.9,3139.2,3.6875215]
[1768890680093,0.0018016,3140.4,3139.3,11.47117759]
[1768890682302,0.0018016,3140.4,3139.4,6.37064406]
[1768890682502,0.0018016,3140.4,3139.6,11.47117759]
[1768890682804,0.0018016,3140.4,3139.7,11.97417759]
[1768890683001,12.34875911,3140.4,3139.5,1.78418217]
[1768890683331,12.34875911,3140.4,3139.6,0.503]
[1768890683539,12.34875911,3140.4,3139.3,15.18341993]
[1768890683834,12.34875911,3140.4,3139.4,0.503]
[1768890684201,12.34875911,3140.4,3139.1,13.51388133]
[1768890684404,12.34695751,3140.2,3139.1,13.51388133]
[1768890684621,12.34695751,3140.0,3139.2,0.503]
[1768890684933,12.34695751,3140.0,3139.1,11.99799665]
[1768890685232,12.34695751,3140.0,3139.2,0.503]
[1768890686309,12.34695751,3140.3,3139.2,12.50099665]
[1768890686710,12.34695751,3140.3,3139.2,11.99799665]
[1768890686913,13.90026652,3140.2,3139.3,0.503]
[1768890687151,13.90026652,3140.2,3139.3,12.50099665]
[1768890689319,12.34695751,3140.2,3139.3,12.50099665]
[1768890690243,12.34695751,3140.1,3139.0,11.99799665]
[1768890690430,12.34695751,3140.0,3138.7,11.99799665]
[1768890691138,12.34695751,3140.0,3138.8,0.503]
[1768890691332,12.34695751,3140.0,3138.4,0.0008016]
[1768890691333,12.34695751,3139.9,3138.4,0.0008016]
[1768890691551,12.34695751,3139.7,3138.7,0.501]
[1768890691751,12.34695751,3139.7,3138.4,0.0008016]
[1768890691947,12.34695751,3139.5,3138.4,0.503]
[1768890692152,12.34695751,3139.5,3138.4,0.4958016]
[1768890692443,3.18532203,3139.4,3138.4,0.4958016]
[1768890692644,12.98401617,3139.3,3138.1,0.0028012]
[1768890692812,12.98401617,3139.3,3138.2,0.503]
[1768890693144,12.98401617,3139.3,3138.3,0.503]
[1768890693345,12.98401617,3139.3,3138.2,0.503]
[1768890693586,5.63575746,3139.3,3138.0,0.002]
[1768890693719,12.34695751,3138.9,3137.8,0.0008016]
[1768890694076,12.34695751,3138.7,3137.7,0.002]
[1768890694220,12.34695751,3138.7,3137.5,0.000802]
[1768890694410,0.496,3138.8,3137.0,11.99799665]
[1768890694411,3.18633698,3138.4,3137.2,0.503]
[1768890694627,12.34695751,3138.3,3137.2,0.503]
[1768890696022,12.34695751,3138.3,3137.0,0.503]
[1768890696218,12.34695751,3138.3,3136.9,0.002]
[1768890696219,12.34695751,3138.1,3136.9,0.002]
[1768890696456,3.18694626,3137.8,3136.9,0.002]
[1768890696682,12.34695751,3137.7,3136.9,0.002]
[1768890696866,12.34695751,3137.5,3136.9,0.002]
[1768890697403,12.34695751,3137.8,3136.8,11.99879865]
[1768890697539,1.00550109,3138.3,3137.1,11.99799665]
[1768890697540,12.34695751,3138.2,3137.1,11.99799665]
[1768890697738,12.34695751,3138.2,3137.0,0.503]
[1768890697938,12.34695751,3138.0,3136.8,11.99879865]
[1768890698183,12.34695751,3138.0,3136.9,12.50099665]
[1768890698543,12.34695751,3138.0,3137.0,11.99799665]
[1768890699198,12.34695751,3138.2,3137.0,11.99799665]
[1768890699639,12.34695751,3138.2,3137.1,0.503]
[1768890699838,14.26854113,3138.1,3137.1,0.503]
[1768890700270,14.26854113,3138.1,3136.8,0.000802]
[1768890700454,14.26854113,3138.1,3136.9,0.503]
[1768890700640,12.34695751,3138.0,3136.9,0.503]
[1768890701075,1.92158362,3138.1,3137.0,11.99799665]
[1768890701255,12.34695751,3138.3,3137.2,11.99799665]
[1768890702055,12.34695751,3138.3,3134.2,3.8]
[1768890702265,0.16627025,3135.7,3134.4,11.99799665]
[1768890702596,0.11914639,3135.7,3134.5,11.99799665]
[1768890702891,0.11914639,3135.7,3134.6,12.94509321]
[1768890703100,0.11914639,3135.7,3134.7,12.94509321]
[1768890703390,0.11914639,3135.7,3134.8,1.29450932]
[1768890703574,0.11914639,3135.7,3134.8,1.79750932]
[1768890704162,0.11914639,3135.7,3134.8,1.29450932]
[1768890704343,0.11914639,3135.7,3134.9,0.503]
[1768890704685,3.18826717,3136.5,3135.0,12.44209321]
[1768890704982,1.59652534,3136.4,3135.2,12.44209321]
[1768890705842,1.59652534,3136.4,3135.3,12.94509321]
[1768890706490,19.1535055,3136.6,3135.3,12.44209321]
[1768890706655,19.1535055,3136.6,3135.4,0.503]
[1768890707649,19.1535055,3136.6,3135.5,0.503]
[1768890707879,15.96524589,3136.6,3135.5,0.503]
[1768890708044,12.77698628,3136.9,3135.5,12.94509321]
[1768890708245,1.59647453,3136.8,3135.6,13.73660253]
[1768890708445,3.68466856,3137.1,3135.6,13.73660253]
[1768890708683,6.87233712,3137.1,3135.6,13.73660253]
[1768890708978,19.1523234,3137.1,3135.7,12.44209321]
[1768890709149,15.96465484,3137.1,3135.7,12.44209321]
[1768890709344,19.1523234,3137.1,3135.7,12.44209321]
[1768890709589,12.77698628,3137.0,3135.8,1.37366025]
[1768890711782,5.1029009,3137.1,3135.9,12.44209321]
[1768890711783,1.91523234,3137.1,3135.9,12.44209321]
[1768890711981,3.18757639,3137.2,3136.1,12.44209321]
[1768890712448,12.77698628,3137.3,3136.1,12.44209321]
[1768890712449,15.96448031,3137.3,3136.1,12.44209321]
[1768890712649,12.77698628,3137.2,3136.2,0.503]
[1768890713092,12.77698628,3137.2,3136.1,0.503]
[1768890713646,12.77698628,3137.2,3135.6,12.98231655]
[1768890713984,12.2073627,3137.0,3135.7,0.503]
[1768890714289,14.06563045,3136.9,3135.8,1.34853166]
[1768890714462,14.06563045,3136.9,3135.8,0.503]
[1768890714972,12.2073627,3136.7,3135.8,0.503]
[1768890715875,0.497,3136.8,3135.8,13.48531655]
[1768890716069,0.497,3136.8,3136.1,0.002]
[1768890716271,12.2073627,3136.6,3135.3,12.98231655]
[1768890716470,12.2073627,3136.6,3134.2,3.19055771]
[1768890716471,12.2073627,3136.4,3134.0,12.98231655]
[1768890716791,12.2073627,3136.4,3134.7,12.98031655]
[1768890716991,12.2073627,3136.2,3134.5,0.002]
[1768890717165,12.2073627,3135.6,3134.5,0.002]
[1768890717368,0.497,3135.5,3134.5,0.002]
[1768890717806,3.18938572,3135.4,3134.5,0.002]
[1768890717993,3.18938572,3135.4,3134.4,0.503]
[1768890718308,12.2073627,3135.4,3134.2,12.98231655]
[1768890718465,14.11566077,3135.3,3134.3,0.503]
[1768890718806,12.2073627,3135.3,3134.2,1.29823165]
[1768890718981,12.2073627,3135.3,3133.8,12.98231655]
[1768890719188,12.2073627,3135.3,3134.2,0.503]
[1768890719378,6.87561804,3135.5,3134.2,13.48531655]
[1768890719698,1.2440933,3136.1,3134.3,13.48531655]
[1768890719896,12.7043627,3136.4,3134.5,12.98231655]
[1768890720104,15.39583319,3136.3,3134.5,12.98231655]
[1768890720298,18.58431633,3136.3,3134.7,12.98231655]
[1768890720501,12.440933,3136.1,3134.8,0.503]
[1768890720702,12.2073627,3135.9,3134.8,0.503]
[1768890721010,3.68538933,3136.4,3134.8,13.48531655]
[1768890721301,3.68538643,3136.4,3134.8,13.48531655]
[1768890721891,3.68538643,3136.4,3135.0,12.98231655]
[1768890722782,0.497,3136.4,3135.0,12.98231655]
[1768890723103,3.68543363,3136.4,3135.0,12.98231655]
[1768890723274,3.68543363,3136.4,3132.6,12.98231655]
[1768890723275,12.2073627,3136.1,3132.6,12.98231655]
[1768890723472,12.2073627,3136.1,3133.0,12.98231655]
[1768890723473,0.2335703,3134.9,3133.0,12.98231655]
[1768890723671,0.497,3134.8,3133.2,12.98231655]
[1768890723900,3.19009793,3134.7,3133.2,12.98231655]
[1768890724107,3.68695922,3134.9,3133.2,16.17387903]
[1768890724304,7.5812544,3134.9,3133.4,12.98231655]
[1768890724503,6.87693451,3134.9,3133.4,12.98231655]
[1768890725004,6.87693451,3134.9,3133.5,0.504]
[1768890725372,12.2073627,3134.8,3133.3,1.79761107]
[1768890725572,12.440933,3134.7,3133.0,12.98231655]
[1768890725772,3.1901997,3134.6,3133.0,16.67807614]
[1768890725968,18.5877621,3134.6,3133.0,13.48631655]
[1768890726197,18.5877621,3134.6,3132.6,12.98231655]
[1768890726198,12.440933,3134.5,3132.6,12.98231655]
[1768890726396,2.06011327,3134.4,3133.0,16.1741415]
[1768890726601,12.440933,3134.3,3132.7,12.98231655]
[1768890726903,12.2073627,3134.1,3132.7,12.98231655]
[1768890727797,12.2073627,3134.1,3132.5,0.554]
[1768890728009,3.19050505,3134.3,3132.6,12.98231655]
[1768890728211,0.497,3134.2,3132.6,16.17455303]
[1768890728378,15.39753988,3134.7,3132.8,12.98231655]
[1768890728379,0.497,3134.5,3132.8,12.98231655]
[1768890728580,0.497,3134.5,3133.1,12.98231655]
[1768890728920,0.497,3134.5,3133.3,12.98231655]
[1768890729414,12.7043627,3134.5,3133.3,0.504]
[1768890729819,3.19013391,3134.7,3133.3,13.48631655]
[1768890729988,0.497,3134.5,3133.5,12.98231655]
[1768890730176,6.87761102,3134.5,3133.5,12.98231655]
[1768890730383,0.497,3134.5,3133.5,12.98231655]
[1768890730972,3.68730785,3134.5,3133.5,12.98231655]
[1768890731201,12.2073627,3134.9,3133.6,1.43309482]
[1768890731402,3.68703264,3134.8,3133.6,14.41541137]
[1768890731611,3.68703264,3134.8,3133.6,12.98231655]
[1768890731980,6.87706528,3134.8,3133.6,12.98231655]
[1768890732199,3.68701119,3134.8,3133.6,12.98231655]
[1768890732544,12.2073627,3134.3,3133.0,0.002]
[1768890732816,12.2073627,3134.1,3133.0,0.002]
[1768890733122,0.498,3134.0,3133.0,0.002]
[1768890733330,0.498,3133.9,3133.0,0.002]
[1768890733480,0.90648868,3133.9,3133.0,0.002]
[1768890733675,13.11385138,3133.9,3133.0,0.002]
[1768890734009,12.2073627,3133.7,3132.0,12.98231655]
[1768890734322,12.2073627,3133.7,3131.9,0.504]
[1768890734482,12.2073627,3133.7,3131.6,13.48631655]
[1768890734685,12.2073627,3133.5,3131.7,1.66796466]
[1768890734884,12.2073627,3133.3,3131.7,4.86105573]
[1768890735122,12.2073627,3133.3,3131.7,1.66796466]
[1768890735612,12.2073627,3133.3,3131.4,0.002]
[1768890735613,12.2073627,3133.1,3131.4,0.002]
[1768890735914,3.19213458,3132.7,3131.4,0.002]
[1768890736118,12.7053627,3132.6,3131.4,0.002]
[1768890736317,12.7053627,3132.6,3131.2,12.98231655]
[1768890736531,1.90896319,3132.5,3131.0,0.504]
[1768890736681,12.2073627,3132.3,3130.3,12.98231655]
[1768890737092,0.498,3132.2,3131.0,12.98231655]
[1768890737530,12.2073627,3131.0,3129.2,12.98231655]
[1768890737680,0.498,3130.9,3129.3,14.2805482]
[1768890737882,0.498,3131.2,3129.3,14.2805482]
[1768890738192,15.40031266,3131.9,3129.5,12.98231655]
[1768890738417,1.54003127,3131.8,3129.7,12.98231655]
[1768890738616,0.498,3131.8,3129.7,12.98231655]
[1768890738927,0.498,3131.8,3129.9,12.98231655]
[1768890739417,6.38573484,3132.0,3130.1,12.98231655]
[1768890739636,0.498,3131.7,3130.1,12.98231655]
[1768890739802,0.498,3131.7,3130.3,12.98231655]
[1768890739982,0.498,3131.7,3130.4,16.17679648]
[1768890740310,3.6907789,3132.1,3130.5,13.48631655]
[1768890740835,0.498,3132.1,3130.6,0.504]
[1768890741018,0.498,3132.1,3130.7,12.98231655]
[1768890741221,3.19220953,3132.7,3130.9,12.98231655]
[1768890741421,0.498,3132.6,3130.9,12.98231655]
[1768890742124,3.19233838,3132.5,3130.9,12.98231655]
[1768890742436,12.2073627,3132.4,3130.8,1.34863166]
[1768890742589,12.2073627,3132.4,3130.9,0.504]
[1768890742927,12.2073627,3132.2,3130.6,0.504]
[1768890743086,0.498,3132.1,3130.6,0.504]
[1768890743291,0.498,3132.1,3130.7,3.19417256]
[1768890743605,1.27053627,3132.0,3130.7,13.93329724]
[1768890744130,3.19294996,3131.9,3130.8,0.504]
[1768890744290,4.46339135,3132.0,3130.8,0.504]
[1768890744928,1.27053627,3132.0,3130.8,0.504]
[1768890745136,4.46341804,3132.0,3130.7,13.93329724]
[1768890745300,0.17685363,3131.9,3130.8,1.76315497]
[1768890745506,0.17685363,3131.9,3130.2,12.26524833]
[1768890745819,0.17685363,3131.9,3130.3,12.76924833]
[1768890746018,0.17685363,3131.9,3130.5,3.19431503]
[1768890746189,0.17685363,3131.9,3130.4,3.69839163]
[1768890746393,6.56281327,3131.9,3130.5,1.596364]
[1768890746626,21.77275015,3131.9,3130.6,0.504]
[1768890746833,18.57977033,3131.9,3130.6,0.504]
[1768890747041,12.01695706,3131.8,3130.6,0.504]
[1768890747224,12.01695706,3131.8,3130.3,12.26524833]
[1768890747409,12.01695706,3131.8,3130.3,0.504]
[1768890747741,1.85797703,3131.7,3130.3,12.26524833]
[1768890748035,1.85797703,3131.7,3130.4,12.26524833]
[1768890748405,1.85797703,3131.7,3130.5,12.26524833]
[1768890748703,0.67485363,3131.9,3130.5,12.26524833]
[1768890748889,0.498,3131.9,3130.5,12.26524833]
[1768890749525,12.01695706,3132.7,3130.5,12.26524833]
[1768890749723,0.498,3132.3,3130.5,12.26524833]
[1768890750340,0.498,3132.3,3130.6,6.3885517]
[1768890750651,0.498,3132.3,3130.7,12.77024833]
[1768890750652,0.498,3132.2,3130.7,12.77024833]
[1768890750941,0.498,3132.2,3130.9,12.26524833]
[1768890751288,12.51495706,3132.2,3130.9,12.26524833]
[1768890751511,12.51495706,3132.2,3130.8,1.59645242]
[1768890751512,12.51495706,3132.2,3131.0,0.505]
[1768890751731,12.51495706,3132.2,3130.7,12.26524833]
[1768890751898,1.25149571,3132.1,3130.8,0.505]
[1768890752294,1.25149571,3132.1,3130.8,3.69905808]
[1768890752493,3.19193079,3132.9,3130.9,12.77024833]
[1768890752803,12.51495706,3133.0,3130.9,12.77024833]
[1768890753018,15.70680819,3133.0,3130.9,12.77024833]
[1768890753203,0.001,3132.3,3130.9,12.77024833]
[1768890753408,0.001,3132.3,3131.1,12.26524833]
[1768890754194,0.001,3132.3,3131.3,12.26524833]
[1768890754400,0.001,3132.3,3131.5,12.26524833]
[1768890755021,0.001,3132.3,3131.6,0.505]
[1768890755325,0.001,3132.3,3131.1,12.26524833]
[1768890755625,0.001,3132.3,3130.7,0.505]
[1768890755626,12.51595706,3132.3,3130.7,0.505]
[1768890755827,13.26855277,3132.2,3130.7,0.505]
[1768890756127,13.26855277,3132.2,3130.8,12.26724833]
[1768890756502,15.20970314,3132.1,3130.8,12.26724833]
[1768890756697,15.20970314,3132.1,3130.5,0.002]
[1768890756698,12.01695706,3131.8,3130.5,0.002]
[1768890756915,12.01695706,3131.6,3129.7,0.505]
[1768890757095,12.01695706,3131.4,3129.8,12.26724833]
[1768890757297,12.01695706,3131.4,3129.8,0.002]
[1768890757498,0.2335703,3131.1,3129.8,0.002]
[1768890757732,12.51495706,3131.0,3129.4,0.505]
[1768890758041,12.01695706,3130.8,3129.4,0.505]
[1768890758529,1.25149571,3130.9,3129.5,12.26724833]
[1768890758705,3.69190384,3131.0,3129.5,12.26724833]
[1768890758908,12.01695706,3130.9,3129.5,0.002]
[1768890759109,12.01695706,3130.7,3129.5,0.002]
[1768890759310,12.25052736,3130.3,3129.2,0.002]
[1768890759511,12.25052736,3130.3,3128.7,12.77024833]
[1768890759512,12.51495706,3130.2,3128.3,12.26524833]
[1768890759716,13.5253801,3130.1,3128.4,0.505]
[1768890760627,3.19488817,3130.0,3128.4,3.70152042]
[1768890760833,3.19488817,3130.0,3128.4,3.19652042]
[1768890761002,6.38977634,3130.0,3128.3,12.26524833]
[1768890761331,6.38977634,3130.0,3127.1,12.26524833]
[1768890761332,12.01695706,3129.4,3127.1,12.26524833]
[1768890761532,12.01695706,3129.4,3126.1,0.61544474]
[1768890761533,12.01695706,3129.4,3127.6,12.26524833]
[1768890761706,12.01695706,3129.4,3127.0,0.505]
[1768890761707,0.498,3129.3,3127.8,12.26524833]
[1768890761895,0.128,3129.8,3128.2,12.26524833]
[1768890761896,1.25149571,3129.2,3128.2,12.26524833]
[1768890762101,0.498,3129.5,3128.3,3.1965471]
[1768890762303,12.51495706,3129.5,3128.0,3.19685972]
[1768890762509,0.498,3129.5,3128.1,3.19682573]
[1768890762715,3.69340717,3129.5,3128.2,1.54620741]
[1768890763035,14.75874013,3129.4,3127.5,11.88476189]
[1768890763225,12.75874013,3129.3,3127.5,15.08219182]
[1768890763539,12.99231043,3128.4,3126.3,11.88476189]
[1768890763835,12.99231043,3128.0,3126.3,11.88476189]
[1768890764643,0.2335703,3127.8,3126.3,11.88476189]
[1768890764816,6.3940663,3127.9,3126.2,11.88476189]
[1768890765155,12.75874013,3127.6,3123.3,1.54022271]
[1768890765355,12.75874013,3125.2,3122.3,3.20276719]
[1768890765694,12.29626795,3123.8,3120.7,11.88476189]
[1768890765816,17.96027283,3123.6,3121.0,11.88476189]
[1768890766015,17.96027283,3123.6,3120.8,1.50891987]
[1768890766016,2.0,3123.4,3121.2,11.88476189]
[1768890766347,0.499,3123.3,3122.2,3.20284222]
[1768890766665,0.12673235,3124.2,3122.5,11.88476189]
[1768890766831,0.12673235,3124.2,3122.7,11.88476189]
[1768890767362,0.12673235,3124.2,3122.1,0.505]
[1768890767363,1.3,3124.1,3121.3,11.88476189]
[1768890767533,1.3,3124.1,3121.4,1.18847619]
[1768890767534,0.128,3123.9,3121.4,1.18847619]
[1768890767856,10.29626795,3123.5,3120.3,3.20472499]
[1768890768083,10.29626795,3123.5,3118.8,3.20627002]
[1768890768084,10.42426795,3122.7,3119.4,0.62285545]
[1768890768266,10.29626795,3121.1,3119.4,0.62285545]
[1768890768424,1.7286268,3121.0,3119.4,0.62285545]
[1768890768625,0.128,3120.8,3119.4,1e-08]
[1768890768849,10.29329795,3120.4,3118.2,2.51126446]
[1768890769169,16.02101955,3120.9,3118.3,11.88476189]
[1768890769170,0.499,3120.3,3118.3,11.88476189]
[1768890769333,0.499,3120.4,3118.7,11.88476189]
[1768890769535,3.36919573,3121.4,3119.5,11.88476189]
[1768890769723,0.499,3121.3,3119.5,11.88476189]
[1768890770262,0.499,3121.3,3118.8,1.18847619]
[1768890770263,2.0,3121.2,3118.8,13.07323808]
[1768890770464,6.56987734,3121.4,3119.4,15.09047345]
[1768890770465,0.1624126,3121.4,3119.4,15.09047345]
[1768890770664,0.04598189,3121.4,3120.5,11.88476189]
[1768890770822,1e-08,3121.4,3120.6,12.38976189]
[1768890771035,3.32758277,3124.2,3120.8,11.88476189]
[1768890771036,8.40245854,3123.8,3120.8,11.88476189]
[1768890771228,10.29329795,3123.4,3118.8,13.07323808]
[1768890771522,10.29329795,3123.4,3116.6,0.05739155]
[1768890771523,0.128,3123.1,3120.4,11.88476189]
[1768890771756,2.0,3123.0,3120.4,11.88476189]
[1768890772178,0.128,3122.7,3120.4,11.88476189]
[1768890772388,0.2128,3122.6,3120.5,1.18847619]
[1768890772595,2.0,3122.6,3120.5,1.18847619]
[1768890772752,12.42129795,3122.4,3119.1,0.49530579]
[1768890772952,2.128,3122.2,3118.9,11.88476189]
[1768890773148,0.128,3122.0,3119.5,11.98052313]
[1768890773503,0.2128,3121.9,3119.6,11.98052313]
[1768890773707,0.499,3121.9,3119.9,3.20519124]
[1768890773870,12.81024816,3122.5,3120.1,11.98052313]
[1768890773871,6.40512408,3122.5,3120.1,11.98052313]
[1768890774070,0.499,3122.2,3120.2,11.98052313]
[1768890774266,0.499,3122.2,3120.3,12.48652313]
[1768890774460,0.96076639,3122.4,3120.4,11.98052313]
[1768890774799,3.20286977,3122.2,3120.4,11.98052313]
[1768890774993,0.499,3122.1,3120.4,11.98052313]
[1768890775147,0.69047395,3122.0,3120.4,12.48652313]
[1768890775782,1.18947395,3122.0,3120.4,12.48652313]
[1768890776392,3.20286977,3122.2,3120.4,12.48652313]
[1768890776558,6.90473954,3122.2,3120.5,11.98052313]
[1768890776925,3.70186977,3122.2,3120.5,11.98052313]
[1768890777054,3.20286977,3122.2,3120.6,11.98052313]
[1768890777254,6.40348348,3123.3,3120.7,11.98052313]
[1768890777556,3.20174174,3123.3,3120.7,11.98052313]
[1768890777754,3.70074174,3123.3,3120.9,11.98052313]
[1768890777955,0.499,3123.3,3121.1,11.98052313]
[1768890778292,0.499,3123.3,3120.5,12.81845769]
[1768890778293,0.001,3122.7,3121.3,11.98052313]
[1768890778596,0.001,3122.7,3121.4,0.506]
[1768890778809,0.05,3125.3,3121.6,11.98052313]
[1768890778954,0.05,3125.3,3121.8,11.98052313]
[1768890778955,0.499,3125.3,3121.8,11.98052313]
[1768890779156,5.02678728,3124.8,3122.0,11.98052313]
[1768890779390,2.0,3124.7,3122.2,11.98052313]
[1768890779563,0.499,3124.6,3122.2,11.98052313]
[1768890779885,2.0,3124.5,3122.2,11.98052313]
[1768890780273,5.02678728,3124.2,3121.5,11.98052313]
[1768890780459,0.128,3123.9,3121.5,11.98052313]
[1768890780664,2.0,3123.8,3121.5,11.98052313]
[1768890780861,2.0,3123.6,3121.5,11.98052313]
[1768890781073,3.70033175,3123.7,3121.6,11.98052313]
[1768890781387,3.70033175,3123.7,3121.5,6.40715355]
[1768890781388,0.69015701,3123.6,3121.8,11.98052313]
[1768890781551,2.0,3123.5,3120.9,11.98052313]
[1768890781754,2.2335703,3122.0,3119.6,3.20553572]
[1768890781955,5.02678728,3122.1,3119.1,12.48652313]
[1768890781956,0.2335703,3121.8,3119.7,0.32055357]
[1768890782197,0.2335703,3121.6,3119.1,11.98052313]
[1768890782352,1.22503576,3121.9,3118.1,0.003]
[1768890782353,0.72603576,3121.9,3119.6,11.98052313]
[1768890782557,0.499,3122.5,3120.3,3.20475096]
[1768890782754,0.85714298,3123.6,3121.1,11.98052313]
[1768890783058,12.62980265,3124.4,3121.1,11.98052313]
[1768890783059,0.499,3124.1,3121.6,15.67405313]
[1768890783288,3.20061451,3124.4,3121.7,0.506]
[1768890783590,0.51547873,3124.9,3122.1,11.98052313]
[1768890783757,0.499,3124.8,3122.3,11.98052313]
[1768890784193,0.499,3124.8,3122.4,15.503171]
[1768890784398,9.59495713,3125.6,3122.5,11.98052313]
[1768890784599,5.02678728,3125.1,3122.6,0.506]
[1768890784812,5.02678728,3125.1,3122.2,0.506]
[1768890784813,9.60061443,3124.8,3122.2,0.506]
[1768890785016,0.128,3124.2,3121.2,3.20389219]
[1768890785298,2.0,3124.0,3121.7,3.20337138]
[1768890785458,2.0,3124.0,3121.7,3.70937138]
[1768890785662,1.16006144,3124.7,3121.7,6.91275415]
[1768890785863,1.16006144,3124.7,3121.7,3.70937138]
[1768890785864,2.0,3124.5,3121.7,3.70937138]